Workbook

Sheet test
A1: Time | B1: Distance to back | G1: Time(min) | H1: Position
A2: 00:00:00 | D2: TimeConversion: | E2: 1.02900 | G2: 0.000 | H2: 0.330 | I2: =M3 -> 0.040 | J2: =M3 -> 0.040 | L2: Upper | M2: 0.330 | R2: Time | S2: Normalized | T2: SD | V2: From | W2: To | X2: Aver
A3: 00:00:00.230 | B3: 0.33 | D3: Step: | E3: 1 | G3: 0.004 | H3: 0.330 | I3: =M2 -> 0.330 | L3: Lower | M3: 0.040 | R3: 0.50 | S3: =(X3 - M3) / (M2 - M3) -> 0.93 | T3: 0.033 | V3: 0.00 | W3: 1.00 | X3: 0.310 | Y3: =M5 -> 0.700 | Z3: =M6 -> 0.350
A4: 00:00:00.440 | B4: 0.34 | G4: 0.008 | H4: 0.340 | R4: 1.50 | S4: =(X4 - M3) / (M2 - M3) -> 0.94 | T4: 0.031 | V4: 1.00 | W4: 2.00 | X4: 0.312 | Y4: =M5 -> 0.700 | Z4: =M6 -> 0.350
A5: 00:00:00.570 | B5: 0.32 | D5: Time min: | E5: =MIN(A:A)*1440*$E$2 -> 0 | G5: 0.010 | H5: 0.320 | L5: Fatigue | M5: 0.700 | N5: in | O5: 2 | P5: steps | R5: 2.50 | S5: =(X5 - M3) / (M2 - M3) -> 0.91 | T5: 0.035 | V5: 2.00 | W5: 3.00 | X5: 0.304 | Y5: =M5 -> 0.700 | Z5: =M6 -> 0.350
A6: 00:00:00.710 | B6: 0.33 | D6: Time max: | E6: =MAX(A:A)*1440*$E$2 -> 114.6248 | G6: 0.012 | H6: 0.330 | L6: Exhaustion | M6: 0.350 | N6: in | O6: 2 | P6: steps | R6: 3.50 | S6: =(X6 - M3) / (M2 - M3) -> 0.91 | T6: 0.028 | V6: 3.00 | W6: 4.00 | X6: 0.305 | Y6: =M5 -> 0.700 | Z6: =M6 -> 0.350
A7: 00:00:00.840 | B7: 0.32 | G7: 0.014 | H7: 0.320 | R7: 4.50 | S7: =(X7 - M3) / (M2 - M3) -> 0.92 | T7: 0.025 | V7: 4.00 | W7: 5.00 | X7: 0.307 | Y7: =M5 -> 0.700 | Z7: =M6 -> 0.350
A8: 00:00:00.940 | B8: 0.33 | G8: 0.016 | H8: 0.330 | L8: Time to Fatigue is : | M8: 63.0 | R8: 5.50 | S8: =(X8 - M3) / (M2 - M3) -> 0.92 | T8: 0.023 | V8: 5.00 | W8: 6.00 | X8: 0.307 | Y8: =M5 -> 0.700 | Z8: =M6 -> 0.350
A9: 00:00:01.070 | B9: 0.33 | G9: 0.018 | H9: 0.330 | L9: Time to Exhaustion is : | M9: 110.0 | R9: 6.50 | S9: =(X9 - M3) / (M2 - M3) -> 0.90 | T9: 0.031 | V9: 6.00 | W9: 7.00 | X9: 0.302 | Y9: =M5 -> 0.700 | Z9: =M6 -> 0.350
A10: 00:00:01.170 | B10: 0.33 | G10: 0.020 | H10: 0.330 | R10: 7.50 | S10: =(X10 - M3) / (M2 - M3) -> 0.91 | T10: 0.028 | V10: 7.00 | W10: 8.00 | X10: 0.305 | Y10: =M5 -> 0.700 | Z10: =M6 -> 0.350
A11: 00:00:01.300 | B11: 0.33 | G11: 0.022 | H11: 0.330 | R11: 8.50 | S11: =(X11 - M3) / (M2 - M3) -> 0.86 | T11: 0.033 | V11: 8.00 | W11: 9.00 | X11: 0.291 | Y11: =M5 -> 0.700 | Z11: =M6 -> 0.350
A12: 00:00:01.430 | B12: 0.32 | G12: 0.025 | H12: 0.320 | R12: 9.50 | S12: =(X12 - M3) / (M2 - M3) -> 0.88 | T12: 0.032 | V12: 9.00 | W12: 10.00 | X12: 0.296 | Y12: =M5 -> 0.700 | Z12: =M6 -> 0.350
A13: 00:00:01.540 | B13: 0.33 | G13: 0.026 | H13: 0.330 | R13: 10.50 | S13: =(X13 - M3) / (M2 - M3) -> 0.87 | T13: 0.032 | V13: 10.00 | W13: 11.00 | X13: 0.291 | Y13: =M5 -> 0.700 | Z13: =M6 -> 0.350
A14: 00:00:01.670 | B14: 0.32 | D14: Start: | E14: 0 | G14: 0.029 | H14: 0.320 | R14: 11.50 | S14: =(X14 - M3) / (M2 - M3) -> 0.89 | T14: 0.027 | V14: 11.00 | W14: 12.00 | X14: 0.299 | Y14: =M5 -> 0.700 | Z14: =M6 -> 0.350
A15: 00:00:01.770 | B15: 0.32 | D15: Finish: | E15: 114.624769 | G15: 0.030 | H15: 0.320 | R15: 12.50 | S15: =(X15 - M3) / (M2 - M3) -> 0.88 | T15: 0.028 | V15: 12.00 | W15: 13.00 | X15: 0.295 | Y15: =M5 -> 0.700 | Z15: =M6 -> 0.350
A16: 00:00:01.910 | B16: 0.32 | G16: 0.033 | H16: 0.320 | R16: 13.50 | S16: =(X16 - M3) / (M2 - M3) -> 0.88 | T16: 0.031 | V16: 13.00 | W16: 14.00 | X16: 0.294 | Y16: =M5 -> 0.700 | Z16: =M6 -> 0.350
A17: 00:00:02.040 | B17: 0.32 | G17: 0.035 | H17: 0.320 | R17: 14.50 | S17: =(X17 - M3) / (M2 - M3) -> 0.87 | T17: 0.027 | V17: 14.00 | W17: 15.00 | X17: 0.294 | Y17: =M5 -> 0.700 | Z17: =M6 -> 0.350
A18: 00:00:02.140 | B18: 0.32 | G18: 0.037 | H18: 0.320 | R18: 15.50 | S18: =(X18 - M3) / (M2 - M3) -> 0.87 | T18: 0.027 | V18: 15.00 | W18: 16.00 | X18: 0.293 | Y18: =M5 -> 0.700 | Z18: =M6 -> 0.350
A19: 00:00:02.270 | B19: 0.32 | G19: 0.039 | H19: 0.320 | R19: 16.50 | S19: =(X19 - M3) / (M2 - M3) -> 0.88 | T19: 0.027 | V19: 16.00 | W19: 17.00 | X19: 0.296 | Y19: =M5 -> 0.700 | Z19: =M6 -> 0.350
A20: 00:00:02.400 | B20: 0.32 | G20: 0.041 | H20: 0.320 | R20: 17.50 | S20: =(X20 - M3) / (M2 - M3) -> 0.87 | T20: 0.029 | V20: 17.00 | W20: 18.00 | X20: 0.292 | Y20: =M5 -> 0.700 | Z20: =M6 -> 0.350
A21: 00:00:02.530 | B21: 0.32 | G21: 0.043 | H21: 0.320 | R21: 18.50 | S21: =(X21 - M3) / (M2 - M3) -> 0.85 | T21: 0.037 | V21: 18.00 | W21: 19.00 | X21: 0.288 | Y21: =M5 -> 0.700 | Z21: =M6 -> 0.350
A22: 00:00:02.660 | B22: 0.32 | G22: 0.046 | H22: 0.320 | R22: 19.50 | S22: =(X22 - M3) / (M2 - M3) -> 0.84 | T22: 0.040 | V22: 19.00 | W22: 20.00 | X22: 0.283 | Y22: =M5 -> 0.700 | Z22: =M6 -> 0.350
A23: 00:00:02.790 | B23: 0.32 | G23: 0.048 | H23: 0.320 | R23: 20.50 | S23: =(X23 - M3) / (M2 - M3) -> 0.84 | T23: 0.038 | V23: 20.00 | W23: 21.00 | X23: 0.283 | Y23: =M5 -> 0.700 | Z23: =M6 -> 0.350
A24: 00:00:02.920 | B24: 0.33 | G24: 0.050 | H24: 0.330 | R24: 21.50 | S24: =(X24 - M3) / (M2 - M3) -> 0.84 | T24: 0.038 | V24: 21.00 | W24: 22.00 | X24: 0.283 | Y24: =M5 -> 0.700 | Z24: =M6 -> 0.350
A25: 00:00:03.020 | B25: 0.32 | G25: 0.052 | H25: 0.320 | R25: 22.50 | S25: =(X25 - M3) / (M2 - M3) -> 0.85 | T25: 0.032 | V25: 22.00 | W25: 23.00 | X25: 0.287 | Y25: =M5 -> 0.700 | Z25: =M6 -> 0.350
A26: 00:00:03.130 | B26: 0.32 | G26: 0.054 | H26: 0.320 | R26: 23.50 | S26: =(X26 - M3) / (M2 - M3) -> 0.83 | T26: 0.039 | V26: 23.00 | W26: 24.00 | X26: 0.280 | Y26: =M5 -> 0.700 | Z26: =M6 -> 0.350
A27: 00:00:03.230 | B27: 0.32 | G27: 0.055 | H27: 0.320 | R27: 24.50 | S27: =(X27 - M3) / (M2 - M3) -> 0.80 | T27: 0.044 | V27: 24.00 | W27: 25.00 | X27: 0.273 | Y27: =M5 -> 0.700 | Z27: =M6 -> 0.350
A28: 00:00:03.360 | B28: 0.33 | G28: 0.058 | H28: 0.330 | R28: 25.50 | S28: =(X28 - M3) / (M2 - M3) -> 0.79 | T28: 0.046 | V28: 25.00 | W28: 26.00 | X28: 0.268 | Y28: =M5 -> 0.700 | Z28: =M6 -> 0.350
A29: 00:00:03.490 | B29: 0.33 | G29: 0.060 | H29: 0.330 | R29: 26.50 | S29: =(X29 - M3) / (M2 - M3) -> 0.78 | T29: 0.047 | V29: 26.00 | W29: 27.00 | X29: 0.267 | Y29: =M5 -> 0.700 | Z29: =M6 -> 0.350
A30: 00:00:03.590 | B30: 0.33 | G30: 0.062 | H30: 0.330 | R30: 27.50 | S30: =(X30 - M3) / (M2 - M3) -> 0.77 | T30: 0.057 | V30: 27.00 | W30: 28.00 | X30: 0.263 | Y30: =M5 -> 0.700 | Z30: =M6 -> 0.350
A31: 00:00:03.720 | B31: 0.32 | G31: 0.064 | H31: 0.320 | R31: 28.50 | S31: =(X31 - M3) / (M2 - M3) -> 0.88 | T31: 0.026 | V31: 28.00 | W31: 29.00 | X31: 0.294 | Y31: =M5 -> 0.700 | Z31: =M6 -> 0.350
A32: 00:00:03.850 | B32: 0.32 | G32: 0.066 | H32: 0.320 | R32: 29.50 | S32: =(X32 - M3) / (M2 - M3) -> 0.86 | T32: 0.027 | V32: 29.00 | W32: 30.00 | X32: 0.290 | Y32: =M5 -> 0.700 | Z32: =M6 -> 0.350
A33: 00:00:03.980 | B33: 0.33 | G33: 0.068 | H33: 0.330 | R33: 30.50 | S33: =(X33 - M3) / (M2 - M3) -> 0.83 | T33: 0.037 | V33: 30.00 | W33: 31.00 | X33: 0.281 | Y33: =M5 -> 0.700 | Z33: =M6 -> 0.350
A34: 00:00:04.080 | B34: 0.32 | G34: 0.070 | H34: 0.320 | R34: 31.50 | S34: =(X34 - M3) / (M2 - M3) -> 0.83 | T34: 0.042 | V34: 31.00 | W34: 32.00 | X34: 0.281 | Y34: =M5 -> 0.700 | Z34: =M6 -> 0.350
A35: 00:00:04.190 | B35: 0.33 | G35: 0.072 | H35: 0.330 | R35: 32.50 | S35: =(X35 - M3) / (M2 - M3) -> 0.81 | T35: 0.043 | V35: 32.00 | W35: 33.00 | X35: 0.275 | Y35: =M5 -> 0.700 | Z35: =M6 -> 0.350
A36: 00:00:04.310 | B36: 0.32 | G36: 0.074 | H36: 0.320 | R36: 33.50 | S36: =(X36 - M3) / (M2 - M3) -> 0.80 | T36: 0.047 | V36: 33.00 | W36: 34.00 | X36: 0.273 | Y36: =M5 -> 0.700 | Z36: =M6 -> 0.350
A37: 00:00:04.440 | B37: 0.31 | G37: 0.076 | H37: 0.310 | R37: 34.50 | S37: =(X37 - M3) / (M2 - M3) -> 0.76 | T37: 0.051 | V37: 34.00 | W37: 35.00 | X37: 0.261 | Y37: =M5 -> 0.700 | Z37: =M6 -> 0.350
A38: 00:00:04.540 | B38: 0.3 | G38: 0.078 | H38: 0.300 | R38: 35.50 | S38: =(X38 - M3) / (M2 - M3) -> 0.75 | T38: 0.057 | V38: 35.00 | W38: 36.00 | X38: 0.258 | Y38: =M5 -> 0.700 | Z38: =M6 -> 0.350
A39: 00:00:04.670 | B39: 0.31 | G39: 0.080 | H39: 0.310 | R39: 36.50 | S39: =(X39 - M3) / (M2 - M3) -> 0.77 | T39: 0.052 | V39: 36.00 | W39: 37.00 | X39: 0.265 | Y39: =M5 -> 0.700 | Z39: =M6 -> 0.350
A40: 00:00:04.790 | B40: 0.32 | G40: 0.082 | H40: 0.320 | R40: 37.50 | S40: =(X40 - M3) / (M2 - M3) -> 0.74 | T40: 0.058 | V40: 37.00 | W40: 38.00 | X40: 0.255 | Y40: =M5 -> 0.700 | Z40: =M6 -> 0.350
A41: 00:00:04.920 | B41: 0.31 | G41: 0.084 | H41: 0.310 | R41: 38.50 | S41: =(X41 - M3) / (M2 - M3) -> 0.78 | T41: 0.053 | V41: 38.00 | W41: 39.00 | X41: 0.267 | Y41: =M5 -> 0.700 | Z41: =M6 -> 0.350
A42: 00:00:05.030 | B42: 0.32 | G42: 0.086 | H42: 0.320 | R42: 39.50 | S42: =(X42 - M3) / (M2 - M3) -> 0.85 | T42: 0.036 | V42: 39.00 | W42: 40.00 | X42: 0.286 | Y42: =M5 -> 0.700 | Z42: =M6 -> 0.350
A43: 00:00:05.130 | B43: 0.32 | G43: 0.088 | H43: 0.320 | R43: 40.50 | S43: =(X43 - M3) / (M2 - M3) -> 0.79 | T43: 0.049 | V43: 40.00 | W43: 41.00 | X43: 0.270 | Y43: =M5 -> 0.700 | Z43: =M6 -> 0.350
A44: 00:00:05.260 | B44: 0.32 | G44: 0.090 | H44: 0.320 | R44: 41.50 | S44: =(X44 - M3) / (M2 - M3) -> 0.82 | T44: 0.049 | V44: 41.00 | W44: 42.00 | X44: 0.277 | Y44: =M5 -> 0.700 | Z44: =M6 -> 0.350
A45: 00:00:05.390 | B45: 0.32 | G45: 0.092 | H45: 0.320 | R45: 42.50 | S45: =(X45 - M3) / (M2 - M3) -> 0.78 | T45: 0.053 | V45: 42.00 | W45: 43.00 | X45: 0.266 | Y45: =M5 -> 0.700 | Z45: =M6 -> 0.350
A46: 00:00:05.520 | B46: 0.32 | G46: 0.095 | H46: 0.320 | R46: 43.50 | S46: =(X46 - M3) / (M2 - M3) -> 0.75 | T46: 0.061 | V46: 43.00 | W46: 44.00 | X46: 0.258 | Y46: =M5 -> 0.700 | Z46: =M6 -> 0.350
A47: 00:00:05.620 | B47: 0.33 | G47: 0.096 | H47: 0.330 | R47: 44.50 | S47: =(X47 - M3) / (M2 - M3) -> 0.77 | T47: 0.056 | V47: 44.00 | W47: 45.00 | X47: 0.264 | Y47: =M5 -> 0.700 | Z47: =M6 -> 0.350
A48: 00:00:05.720 | B48: 0.33 | G48: 0.098 | H48: 0.330 | R48: 45.50 | S48: =(X48 - M3) / (M2 - M3) -> 0.78 | T48: 0.055 | V48: 45.00 | W48: 46.00 | X48: 0.267 | Y48: =M5 -> 0.700 | Z48: =M6 -> 0.350
A49: 00:00:05.850 | B49: 0.32 | G49: 0.100 | H49: 0.320 | R49: 46.50 | S49: =(X49 - M3) / (M2 - M3) -> 0.84 | T49: 0.051 | V49: 46.00 | W49: 47.00 | X49: 0.284 | Y49: =M5 -> 0.700 | Z49: =M6 -> 0.350
A50: 00:00:05.980 | B50: 0.31 | G50: 0.103 | H50: 0.310 | R50: 47.50 | S50: =(X50 - M3) / (M2 - M3) -> 0.88 | T50: 0.043 | V50: 47.00 | W50: 48.00 | X50: 0.294 | Y50: =M5 -> 0.700 | Z50: =M6 -> 0.350
A51: 00:00:06.080 | B51: 0.31 | G51: 0.104 | H51: 0.310 | R51: 48.50 | S51: =(X51 - M3) / (M2 - M3) -> 0.84 | T51: 0.047 | V51: 48.00 | W51: 49.00 | X51: 0.283 | Y51: =M5 -> 0.700 | Z51: =M6 -> 0.350
A52: 00:00:06.220 | B52: 0.32 | G52: 0.107 | H52: 0.320 | R52: 49.50 | S52: =(X52 - M3) / (M2 - M3) -> 0.84 | T52: 0.047 | V52: 49.00 | W52: 50.00 | X52: 0.285 | Y52: =M5 -> 0.700 | Z52: =M6 -> 0.350
A53: 00:00:06.320 | B53: 0.31 | G53: 0.108 | H53: 0.310 | R53: 50.50 | S53: =(X53 - M3) / (M2 - M3) -> 0.80 | T53: 0.056 | V53: 50.00 | W53: 51.00 | X53: 0.271 | Y53: =M5 -> 0.700 | Z53: =M6 -> 0.350
A54: 00:00:06.440 | B54: 0.29 | G54: 0.110 | H54: 0.290 | R54: 51.50 | S54: =(X54 - M3) / (M2 - M3) -> 0.79 | T54: 0.057 | V54: 51.00 | W54: 52.00 | X54: 0.269 | Y54: =M5 -> 0.700 | Z54: =M6 -> 0.350
A55: 00:00:06.570 | B55: 0.29 | G55: 0.113 | H55: 0.290 | R55: 52.50 | S55: =(X55 - M3) / (M2 - M3) -> 0.83 | T55: 0.053 | V55: 52.00 | W55: 53.00 | X55: 0.279 | Y55: =M5 -> 0.700 | Z55: =M6 -> 0.350
A56: 00:00:06.700 | B56: 0.32 | G56: 0.115 | H56: 0.320 | R56: 53.50 | S56: =(X56 - M3) / (M2 - M3) -> 0.84 | T56: 0.045 | V56: 53.00 | W56: 54.00 | X56: 0.284 | Y56: =M5 -> 0.700 | Z56: =M6 -> 0.350
A57: 00:00:06.820 | B57: 0.32 | G57: 0.117 | H57: 0.320 | R57: 54.50 | S57: =(X57 - M3) / (M2 - M3) -> 0.80 | T57: 0.063 | V57: 54.00 | W57: 55.00 | X57: 0.271 | Y57: =M5 -> 0.700 | Z57: =M6 -> 0.350
A58: 00:00:06.930 | B58: 0.32 | G58: 0.119 | H58: 0.320 | R58: 55.50 | S58: =(X58 - M3) / (M2 - M3) -> 0.79 | T58: 0.057 | V58: 55.00 | W58: 56.00 | X58: 0.270 | Y58: =M5 -> 0.700 | Z58: =M6 -> 0.350
A59: 00:00:07.060 | B59: 0.32 | G59: 0.121 | H59: 0.320 | R59: 56.50 | S59: =(X59 - M3) / (M2 - M3) -> 0.72 | T59: 0.062 | V59: 56.00 | W59: 57.00 | X59: 0.248 | Y59: =M5 -> 0.700 | Z59: =M6 -> 0.350
A60: 00:00:07.160 | B60: 0.31 | G60: 0.123 | H60: 0.310 | R60: 57.50 | S60: =(X60 - M3) / (M2 - M3) -> 0.74 | T60: 0.060 | V60: 57.00 | W60: 58.00 | X60: 0.254 | Y60: =M5 -> 0.700 | Z60: =M6 -> 0.350
A61: 00:00:07.290 | B61: 0.31 | G61: 0.125 | H61: 0.310 | R61: 58.50 | S61: =(X61 - M3) / (M2 - M3) -> 0.74 | T61: 0.058 | V61: 58.00 | W61: 59.00 | X61: 0.254 | Y61: =M5 -> 0.700 | Z61: =M6 -> 0.350
A62: 00:00:07.390 | B62: 0.31 | G62: 0.127 | H62: 0.310 | R62: 59.50 | S62: =(X62 - M3) / (M2 - M3) -> 0.72 | T62: 0.060 | V62: 59.00 | W62: 60.00 | X62: 0.249 | Y62: =M5 -> 0.700 | Z62: =M6 -> 0.350
A63: 00:00:07.520 | B63: 0.31 | G63: 0.129 | H63: 0.310 | R63: 60.50 | S63: =(X63 - M3) / (M2 - M3) -> 0.76 | T63: 0.059 | V63: 60.00 | W63: 61.00 | X63: 0.261 | Y63: =M5 -> 0.700 | Z63: =M6 -> 0.350
A64: 00:00:07.620 | B64: 0.3 | G64: 0.131 | H64: 0.300 | R64: 61.50 | S64: =(X64 - M3) / (M2 - M3) -> 0.70 | T64: 0.061 | V64: 61.00 | W64: 62.00 | X64: 0.243 | Y64: =M5 -> 0.700 | Z64: =M6 -> 0.350
A65: 00:00:07.750 | B65: 0.27 | G65: 0.133 | H65: 0.270 | R65: 62.50 | S65: =(X65 - M3) / (M2 - M3) -> 0.71 | T65: 0.064 | V65: 62.00 | W65: 63.00 | X65: 0.245 | Y65: =M5 -> 0.700 | Z65: =M6 -> 0.350
A66: 00:00:07.860 | B66: 0.26 | G66: 0.135 | H66: 0.260 | R66: 63.50 | S66: =(X66 - M3) / (M2 - M3) -> 0.68 | T66: 0.063 | V66: 63.00 | W66: 64.00 | X66: 0.237 | Y66: 0.000 | Z66: =M6 -> 0.350
A67: 00:00:07.990 | B67: 0.28 | G67: 0.137 | H67: 0.280 | R67: 64.50 | S67: =(X67 - M3) / (M2 - M3) -> 0.64 | T67: 0.069 | V67: 64.00 | W67: 65.00 | X67: 0.227 | Y67: =M5 -> 0.700 | Z67: =M6 -> 0.350
A68: 00:00:08.120 | B68: 0.31 | G68: 0.139 | H68: 0.310 | R68: 65.50 | S68: =(X68 - M3) / (M2 - M3) -> 0.69 | T68: 0.063 | V68: 65.00 | W68: 66.00 | X68: 0.242 | Y68: =M5 -> 0.700 | Z68: =M6 -> 0.350
A69: 00:00:08.230 | B69: 0.32 | G69: 0.141 | H69: 0.320 | R69: 66.50 | S69: =(X69 - M3) / (M2 - M3) -> 0.62 | T69: 0.065 | V69: 66.00 | W69: 67.00 | X69: 0.221 | Y69: =M5 -> 0.700 | Z69: =M6 -> 0.350
A70: 00:00:08.360 | B70: 0.32 | G70: 0.143 | H70: 0.320 | R70: 67.50 | S70: =(X70 - M3) / (M2 - M3) -> 0.69 | T70: 0.071 | V70: 67.00 | W70: 68.00 | X70: 0.240 | Y70: =M5 -> 0.700 | Z70: =M6 -> 0.350
A71: 00:00:08.490 | B71: 0.32 | G71: 0.146 | H71: 0.320 | R71: 68.50 | S71: =(X71 - M3) / (M2 - M3) -> 0.67 | T71: 0.075 | V71: 68.00 | W71: 69.00 | X71: 0.235 | Y71: =M5 -> 0.700 | Z71: =M6 -> 0.350
A72: 00:00:08.590 | B72: 0.32 | G72: 0.147 | H72: 0.320 | R72: 69.50 | S72: =(X72 - M3) / (M2 - M3) -> 0.63 | T72: 0.077 | V72: 69.00 | W72: 70.00 | X72: 0.224 | Y72: =M5 -> 0.700 | Z72: =M6 -> 0.350
A73: 00:00:08.700 | B73: 0.32 | G73: 0.149 | H73: 0.320 | R73: 70.50 | S73: =(X73 - M3) / (M2 - M3) -> 0.74 | T73: 0.063 | V73: 70.00 | W73: 71.00 | X73: 0.254 | Y73: =M5 -> 0.700 | Z73: =M6 -> 0.350
A74: 00:00:08.800 | B74: 0.32 | G74: 0.151 | H74: 0.320 | R74: 71.50 | S74: =(X74 - M3) / (M2 - M3) -> 0.76 | T74: 0.059 | V74: 71.00 | W74: 72.00 | X74: 0.259 | Y74: =M5 -> 0.700 | Z74: =M6 -> 0.350
A75: 00:00:08.930 | B75: 0.31 | G75: 0.153 | H75: 0.310 | R75: 72.50 | S75: =(X75 - M3) / (M2 - M3) -> 0.71 | T75: 0.068 | V75: 72.00 | W75: 73.00 | X75: 0.246 | Y75: =M5 -> 0.700 | Z75: =M6 -> 0.350
A76: 00:00:09.030 | B76: 0.32 | G76: 0.155 | H76: 0.320 | R76: 73.50 | S76: =(X76 - M3) / (M2 - M3) -> 0.66 | T76: 0.066 | V76: 73.00 | W76: 74.00 | X76: 0.230 | Y76: =M5 -> 0.700 | Z76: =M6 -> 0.350
A77: 00:00:09.130 | B77: 0.32 | G77: 0.157 | H77: 0.320 | R77: 74.50 | S77: =(X77 - M3) / (M2 - M3) -> 0.63 | T77: 0.071 | V77: 74.00 | W77: 75.00 | X77: 0.223 | Y77: =M5 -> 0.700 | Z77: =M6 -> 0.350
A78: 00:00:09.260 | B78: 0.32 | G78: 0.159 | H78: 0.320 | R78: 75.50 | S78: =(X78 - M3) / (M2 - M3) -> 0.66 | T78: 0.067 | V78: 75.00 | W78: 76.00 | X78: 0.231 | Y78: =M5 -> 0.700 | Z78: =M6 -> 0.350
A79: 00:00:09.390 | B79: 0.33 | G79: 0.161 | H79: 0.330 | R79: 76.50 | S79: =(X79 - M3) / (M2 - M3) -> 0.65 | T79: 0.066 | V79: 76.00 | W79: 77.00 | X79: 0.227 | Y79: =M5 -> 0.700 | Z79: =M6 -> 0.350
A80: 00:00:09.520 | B80: 0.33 | G80: 0.163 | H80: 0.330 | R80: 77.50 | S80: =(X80 - M3) / (M2 - M3) -> 0.65 | T80: 0.068 | V80: 77.00 | W80: 78.00 | X80: 0.230 | Y80: =M5 -> 0.700 | Z80: =M6 -> 0.350
A81: 00:00:09.650 | B81: 0.33 | G81: 0.165 | H81: 0.330 | R81: 78.50 | S81: =(X81 - M3) / (M2 - M3) -> 0.63 | T81: 0.072 | V81: 78.00 | W81: 79.00 | X81: 0.224 | Y81: =M5 -> 0.700 | Z81: =M6 -> 0.350
A82: 00:00:09.780 | B82: 0.33 | G82: 0.168 | H82: 0.330 | R82: 79.50 | S82: =(X82 - M3) / (M2 - M3) -> 0.59 | T82: 0.074 | V82: 79.00 | W82: 80.00 | X82: 0.212 | Y82: =M5 -> 0.700 | Z82: =M6 -> 0.350
A83: 00:00:09.910 | B83: 0.33 | G83: 0.170 | H83: 0.330 | R83: 80.50 | S83: =(X83 - M3) / (M2 - M3) -> 0.64 | T83: 0.073 | V83: 80.00 | W83: 81.00 | X83: 0.227 | Y83: =M5 -> 0.700 | Z83: =M6 -> 0.350
A84: 00:00:10.010 | B84: 0.33 | G84: 0.172 | H84: 0.330 | R84: 81.50 | S84: =(X84 - M3) / (M2 - M3) -> 0.68 | T84: 0.070 | V84: 81.00 | W84: 82.00 | X84: 0.238 | Y84: =M5 -> 0.700 | Z84: =M6 -> 0.350
A85: 00:00:10.150 | B85: 0.31 | G85: 0.174 | H85: 0.310 | R85: 82.50 | S85: =(X85 - M3) / (M2 - M3) -> 0.63 | T85: 0.070 | V85: 82.00 | W85: 83.00 | X85: 0.222 | Y85: =M5 -> 0.700 | Z85: =M6 -> 0.350
A86: 00:00:10.270 | B86: 0.31 | G86: 0.176 | H86: 0.310 | R86: 83.50 | S86: =(X86 - M3) / (M2 - M3) -> 0.62 | T86: 0.066 | V86: 83.00 | W86: 84.00 | X86: 0.220 | Y86: =M5 -> 0.700 | Z86: =M6 -> 0.350
A87: 00:00:10.370 | B87: 0.32 | G87: 0.178 | H87: 0.320 | R87: 84.50 | S87: =(X87 - M3) / (M2 - M3) -> 0.64 | T87: 0.064 | V87: 84.00 | W87: 85.00 | X87: 0.225 | Y87: =M5 -> 0.700 | Z87: =M6 -> 0.350
A88: 00:00:10.510 | B88: 0.32 | G88: 0.180 | H88: 0.320 | R88: 85.50 | S88: =(X88 - M3) / (M2 - M3) -> 0.60 | T88: 0.065 | V88: 85.00 | W88: 86.00 | X88: 0.214 | Y88: =M5 -> 0.700 | Z88: =M6 -> 0.350
A89: 00:00:10.610 | B89: 0.32 | G89: 0.182 | H89: 0.320 | R89: 86.50 | S89: =(X89 - M3) / (M2 - M3) -> 0.59 | T89: 0.064 | V89: 86.00 | W89: 87.00 | X89: 0.210 | Y89: =M5 -> 0.700 | Z89: =M6 -> 0.350
A90: 00:00:10.750 | B90: 0.32 | G90: 0.184 | H90: 0.320 | R90: 87.50 | S90: =(X90 - M3) / (M2 - M3) -> 0.53 | T90: 0.063 | V90: 87.00 | W90: 88.00 | X90: 0.194 | Y90: =M5 -> 0.700 | Z90: =M6 -> 0.350
A91: 00:00:10.850 | B91: 0.32 | G91: 0.186 | H91: 0.320 | R91: 88.50 | S91: =(X91 - M3) / (M2 - M3) -> 0.50 | T91: 0.062 | V91: 88.00 | W91: 89.00 | X91: 0.184 | Y91: =M5 -> 0.700 | Z91: =M6 -> 0.350
A92: 00:00:10.950 | B92: 0.32 | G92: 0.188 | H92: 0.320 | R92: 89.50 | S92: =(X92 - M3) / (M2 - M3) -> 0.53 | T92: 0.059 | V92: 89.00 | W92: 90.00 | X92: 0.193 | Y92: =M5 -> 0.700 | Z92: =M6 -> 0.350
A93: 00:00:11.090 | B93: 0.33 | G93: 0.190 | H93: 0.330 | R93: 90.50 | S93: =(X93 - M3) / (M2 - M3) -> 0.52 | T93: 0.057 | V93: 90.00 | W93: 91.00 | X93: 0.192 | Y93: =M5 -> 0.700 | Z93: =M6 -> 0.350
A94: 00:00:11.220 | B94: 0.32 | G94: 0.192 | H94: 0.320 | R94: 91.50 | S94: =(X94 - M3) / (M2 - M3) -> 0.59 | T94: 0.064 | V94: 91.00 | W94: 92.00 | X94: 0.210 | Y94: =M5 -> 0.700 | Z94: =M6 -> 0.350
A95: 00:00:11.350 | B95: 0.31 | G95: 0.195 | H95: 0.310 | R95: 92.50 | S95: =(X95 - M3) / (M2 - M3) -> 0.60 | T95: 0.062 | V95: 92.00 | W95: 93.00 | X95: 0.214 | Y95: =M5 -> 0.700 | Z95: =M6 -> 0.350
A96: 00:00:11.480 | B96: 0.31 | G96: 0.197 | H96: 0.310 | R96: 93.50 | S96: =(X96 - M3) / (M2 - M3) -> 0.54 | T96: 0.058 | V96: 93.00 | W96: 94.00 | X96: 0.197 | Y96: =M5 -> 0.700 | Z96: =M6 -> 0.350
A97: 00:00:11.580 | B97: 0.32 | G97: 0.199 | H97: 0.320 | R97: 94.50 | S97: =(X97 - M3) / (M2 - M3) -> 0.57 | T97: 0.060 | V97: 94.00 | W97: 95.00 | X97: 0.204 | Y97: =M5 -> 0.700 | Z97: =M6 -> 0.350
A98: 00:00:11.710 | B98: 0.32 | G98: 0.201 | H98: 0.320 | R98: 95.50 | S98: =(X98 - M3) / (M2 - M3) -> 0.71 | T98: 0.061 | V98: 95.00 | W98: 96.00 | X98: 0.247 | Y98: =M5 -> 0.700 | Z98: =M6 -> 0.350
A99: 00:00:11.850 | B99: 0.32 | G99: 0.203 | H99: 0.320 | R99: 96.50 | S99: =(X99 - M3) / (M2 - M3) -> 0.71 | T99: 0.062 | V99: 96.00 | W99: 97.00 | X99: 0.245 | Y99: =M5 -> 0.700 | Z99: =M6 -> 0.350
A100: 00:00:11.950 | B100: 0.32 | G100: 0.205 | H100: 0.320 | R100: 97.50 | S100: =(X100 - M3) / (M2 - M3) -> 0.65 | T100: 0.061 | V100: 97.00 | W100: 98.00 | X100: 0.228 | Y100: =M5 -> 0.700 | Z100: =M6 -> 0.350
A101: 00:00:12.050 | B101: 0.32 | G101: 0.207 | H101: 0.320 | R101: 98.50 | S101: =(X101 - M3) / (M2 - M3) -> 0.52 | T101: 0.058 | V101: 98.00 | W101: 99.00 | X101: 0.191 | Y101: =M5 -> 0.700 | Z101: =M6 -> 0.350
A102: 00:00:12.150 | B102: 0.32 | G102: 0.208 | H102: 0.320 | R102: 99.50 | S102: =(X102 - M3) / (M2 - M3) -> 0.47 | T102: 0.056 | V102: 99.00 | W102: 100.00 | X102: 0.177 | Y102: =M5 -> 0.700 | Z102: =M6 -> 0.350
A103: 00:00:12.280 | B103: 0.33 | G103: 0.211 | H103: 0.330 | R103: 100.50 | S103: =(X103 - M3) / (M2 - M3) -> 0.61 | T103: 0.062 | V103: 100.00 | W103: 101.00 | X103: 0.218 | Y103: =M5 -> 0.700 | Z103: =M6 -> 0.350
A104: 00:00:12.380 | B104: 0.33 | G104: 0.212 | H104: 0.330 | R104: 101.50 | S104: =(X104 - M3) / (M2 - M3) -> 0.56 | T104: 0.060 | V104: 101.00 | W104: 102.00 | X104: 0.202 | Y104: =M5 -> 0.700 | Z104: =M6 -> 0.350
A105: 00:00:12.510 | B105: 0.32 | G105: 0.215 | H105: 0.320 | R105: 102.50 | S105: =(X105 - M3) / (M2 - M3) -> 0.47 | T105: 0.053 | V105: 102.00 | W105: 103.00 | X105: 0.175 | Y105: =M5 -> 0.700 | Z105: =M6 -> 0.350
A106: 00:00:12.610 | B106: 0.3 | G106: 0.216 | H106: 0.300 | R106: 103.50 | S106: =(X106 - M3) / (M2 - M3) -> 0.44 | T106: 0.047 | V106: 103.00 | W106: 104.00 | X106: 0.167 | Y106: =M5 -> 0.700 | Z106: =M6 -> 0.350
A107: 00:00:12.740 | B107: 0.29 | G107: 0.218 | H107: 0.290 | R107: 104.50 | S107: =(X107 - M3) / (M2 - M3) -> 0.47 | T107: 0.055 | V107: 104.00 | W107: 105.00 | X107: 0.176 | Y107: =M5 -> 0.700 | Z107: =M6 -> 0.350
A108: 00:00:12.870 | B108: 0.3 | G108: 0.221 | H108: 0.300 | R108: 105.50 | S108: =(X108 - M3) / (M2 - M3) -> 0.45 | T108: 0.049 | V108: 105.00 | W108: 106.00 | X108: 0.171 | Y108: =M5 -> 0.700 | Z108: =M6 -> 0.350
A109: 00:00:12.970 | B109: 0.32 | G109: 0.222 | H109: 0.320 | R109: 106.50 | S109: =(X109 - M3) / (M2 - M3) -> 0.42 | T109: 0.047 | V109: 106.00 | W109: 107.00 | X109: 0.160 | Y109: =M5 -> 0.700 | Z109: =M6 -> 0.350
A110: 00:00:13.070 | B110: 0.33 | G110: 0.224 | H110: 0.330 | R110: 107.50 | S110: =(X110 - M3) / (M2 - M3) -> 0.42 | T110: 0.046 | V110: 107.00 | W110: 108.00 | X110: 0.161 | Y110: =M5 -> 0.700 | Z110: =M6 -> 0.350
A111: 00:00:13.200 | B111: 0.32 | G111: 0.226 | H111: 0.320 | R111: 108.50 | S111: =(X111 - M3) / (M2 - M3) -> 0.42 | T111: 0.048 | V111: 108.00 | W111: 109.00 | X111: 0.161 | Y111: =M5 -> 0.700 | Z111: =M6 -> 0.350
A112: 00:00:13.300 | B112: 0.31 | G112: 0.228 | H112: 0.310 | R112: 109.50 | S112: =(X112 - M3) / (M2 - M3) -> 0.38 | T112: 0.038 | V112: 109.00 | W112: 110.00 | X112: 0.149 | Y112: =M5 -> 0.700 | Z112: =M6 -> 0.350
A113: 00:00:13.410 | B113: 0.29 | G113: 0.230 | H113: 0.290 | R113: 110.50 | S113: =(X113 - M3) / (M2 - M3) -> 0.28 | T113: 0.034 | V113: 110.00 | W113: 111.00 | X113: 0.122 | Y113: =M5 -> 0.700 | Z113: 0.000
A114: 00:00:13.540 | B114: 0.27 | G114: 0.232 | H114: 0.270 | R114: 111.50 | S114: =(X114 - M3) / (M2 - M3) -> 0.28 | T114: 0.059 | V114: 111.00 | W114: 112.00 | X114: 0.122 | Y114: =M5 -> 0.700 | Z114: =M6 -> 0.350
A115: 00:00:13.640 | B115: 0.24 | G115: 0.234 | H115: 0.240 | R115: 112.50 | S115: =(X115 - M3) / (M2 - M3) -> 0.17 | T115: 0.071 | V115: 112.00 | W115: 113.00 | X115: 0.088 | Y115: =M5 -> 0.700 | Z115: =M6 -> 0.350
A116: 00:00:13.750 | B116: 0.24 | G116: 0.236 | H116: 0.240 | R116: 113.50 | S116: =(X116 - M3) / (M2 - M3) -> 0.23 | T116: 0.045 | V116: 113.00 | W116: 114.00 | X116: 0.108 | Y116: =M5 -> 0.700 | Z116: =M6 -> 0.350
A117: 00:00:13.850 | B117: 0.27 | G117: 0.238 | H117: 0.270 | R117: 114.31 | S117: =(X117 - M3) / (M2 - M3) -> -0.02 | T117: 0.046 | V117: 114.00 | W117: 114.62 | X117: 0.035 | Y117: =M5 -> 0.700 | Z117: =M6 -> 0.350
A118: 00:00:13.980 | B118: 0.3 | G118: 0.240 | H118: 0.300
A119: 00:00:14.080 | B119: 0.32 | G119: 0.241 | H119: 0.320
A120: 00:00:14.210 | B120: 0.33 | G120: 0.244 | H120: 0.330
A121: 00:00:14.310 | B121: 0.32 | G121: 0.245 | H121: 0.320
A122: 00:00:14.440 | B122: 0.33 | G122: 0.248 | H122: 0.330
A123: 00:00:14.550 | B123: 0.32 | G123: 0.250 | H123: 0.320
A124: 00:00:14.680 | B124: 0.32 | G124: 0.252 | H124: 0.320
A125: 00:00:14.810 | B125: 0.33 | G125: 0.254 | H125: 0.330
A126: 00:00:14.940 | B126: 0.33 | G126: 0.256 | H126: 0.330
A127: 00:00:15.040 | B127: 0.33 | G127: 0.258 | H127: 0.330
A128: 00:00:15.140 | B128: 0.33 | G128: 0.260 | H128: 0.330
A129: 00:00:15.250 | B129: 0.32 | G129: 0.262 | H129: 0.320
A130: 00:00:15.370 | B130: 0.32 | G130: 0.264 | H130: 0.320
A131: 00:00:15.500 | B131: 0.32 | G131: 0.266 | H131: 0.320
A132: 00:00:15.610 | B132: 0.32 | G132: 0.268 | H132: 0.320
A133: 00:00:15.710 | B133: 0.33 | G133: 0.269 | H133: 0.330
A134: 00:00:15.810 | B134: 0.33 | G134: 0.271 | H134: 0.330
A135: 00:00:15.940 | B135: 0.32 | G135: 0.273 | H135: 0.320
A136: 00:00:16.070 | B136: 0.32 | G136: 0.276 | H136: 0.320
A137: 00:00:16.190 | B137: 0.33 | G137: 0.278 | H137: 0.330
A138: 00:00:16.320 | B138: 0.32 | G138: 0.280 | H138: 0.320
A139: 00:00:16.430 | B139: 0.32 | G139: 0.282 | H139: 0.320
A140: 00:00:16.560 | B140: 0.32 | G140: 0.284 | H140: 0.320
A141: 00:00:16.680 | B141: 0.3 | G141: 0.286 | H141: 0.300
A142: 00:00:16.790 | B142: 0.29 | G142: 0.288 | H142: 0.290
A143: 00:00:16.920 | B143: 0.25 | G143: 0.290 | H143: 0.250
A144: 00:00:17.020 | B144: 0.25 | G144: 0.292 | H144: 0.250
A145: 00:00:17.150 | B145: 0.26 | G145: 0.294 | H145: 0.260
A146: 00:00:17.260 | B146: 0.26 | G146: 0.296 | H146: 0.260
A147: 00:00:17.360 | B147: 0.26 | G147: 0.298 | H147: 0.260
A148: 00:00:17.480 | B148: 0.28 | G148: 0.300 | H148: 0.280
A149: 00:00:17.610 | B149: 0.32 | G149: 0.302 | H149: 0.320
A150: 00:00:17.730 | B150: 0.32 | G150: 0.304 | H150: 0.320
A151: 00:00:17.840 | B151: 0.33 | G151: 0.306 | H151: 0.330
A152: 00:00:17.970 | B152: 0.32 | G152: 0.308 | H152: 0.320
A153: 00:00:18.100 | B153: 0.33 | G153: 0.310 | H153: 0.330
A154: 00:00:18.210 | B154: 0.32 | G154: 0.312 | H154: 0.320
A155: 00:00:18.340 | B155: 0.33 | G155: 0.315 | H155: 0.330
A156: 00:00:18.460 | B156: 0.33 | G156: 0.317 | H156: 0.330
A157: 00:00:18.590 | B157: 0.33 | G157: 0.319 | H157: 0.330
A158: 00:00:18.690 | B158: 0.32 | G158: 0.321 | H158: 0.320
A159: 00:00:18.820 | B159: 0.3 | G159: 0.323 | H159: 0.300
A160: 00:00:18.950 | B160: 0.27 | G160: 0.325 | H160: 0.270
A161: 00:00:19.050 | B161: 0.24 | G161: 0.327 | H161: 0.240
A162: 00:00:19.160 | B162: 0.21 | G162: 0.329 | H162: 0.210
A163: 00:00:19.290 | B163: 0.19 | G163: 0.331 | H163: 0.190
A164: 00:00:19.390 | B164: 0.18 | G164: 0.333 | H164: 0.180
A165: 00:00:19.510 | B165: 0.18 | G165: 0.335 | H165: 0.180
A166: 00:00:19.620 | B166: 0.19 | G166: 0.336 | H166: 0.190
A167: 00:00:19.750 | B167: 0.18 | G167: 0.339 | H167: 0.180
A168: 00:00:19.850 | B168: 0.17 | G168: 0.340 | H168: 0.170
A169: 00:00:19.990 | B169: 0.19 | G169: 0.343 | H169: 0.190
A170: 00:00:20.120 | B170: 0.26 | G170: 0.345 | H170: 0.260
A171: 00:00:20.250 | B171: 0.33 | G171: 0.347 | H171: 0.330
A172: 00:00:20.350 | B172: 0.34 | G172: 0.349 | H172: 0.340
A173: 00:00:20.480 | B173: 0.33 | G173: 0.351 | H173: 0.330
A174: 00:00:20.610 | B174: 0.33 | G174: 0.353 | H174: 0.330
A175: 00:00:20.710 | B175: 0.32 | G175: 0.355 | H175: 0.320
A176: 00:00:20.820 | B176: 0.31 | G176: 0.357 | H176: 0.310
A177: 00:00:20.940 | B177: 0.32 | G177: 0.359 | H177: 0.320
A178: 00:00:21.050 | B178: 0.32 | G178: 0.361 | H178: 0.320
A179: 00:00:21.150 | B179: 0.33 | G179: 0.363 | H179: 0.330
A180: 00:00:21.250 | B180: 0.34 | G180: 0.364 | H180: 0.340
A181: 00:00:21.380 | B181: 0.33 | G181: 0.367 | H181: 0.330
A182: 00:00:21.480 | B182: 0.32 | G182: 0.368 | H182: 0.320
A183: 00:00:21.580 | B183: 0.29 | G183: 0.370 | H183: 0.290
A184: 00:00:21.690 | B184: 0.28 | G184: 0.372 | H184: 0.280
A185: 00:00:21.820 | B185: 0.24 | G185: 0.374 | H185: 0.240
A186: 00:00:21.920 | B186: 0.23 | G186: 0.376 | H186: 0.230
A187: 00:00:22.050 | B187: 0.28 | G187: 0.378 | H187: 0.280
A188: 00:00:22.180 | B188: 0.32 | G188: 0.380 | H188: 0.320
A189: 00:00:22.280 | B189: 0.33 | G189: 0.382 | H189: 0.330
A190: 00:00:22.410 | B190: 0.32 | G190: 0.384 | H190: 0.320
A191: 00:00:22.550 | B191: 0.33 | G191: 0.387 | H191: 0.330
A192: 00:00:22.670 | B192: 0.33 | G192: 0.389 | H192: 0.330
A193: 00:00:22.800 | B193: 0.32 | G193: 0.391 | H193: 0.320
A194: 00:00:22.930 | B194: 0.33 | G194: 0.393 | H194: 0.330
A195: 00:00:23.030 | B195: 0.33 | G195: 0.395 | H195: 0.330
A196: 00:00:23.160 | B196: 0.32 | G196: 0.397 | H196: 0.320
A197: 00:00:23.270 | B197: 0.33 | G197: 0.399 | H197: 0.330
A198: 00:00:23.370 | B198: 0.33 | G198: 0.401 | H198: 0.330
A199: 00:00:23.490 | B199: 0.33 | G199: 0.403 | H199: 0.330
A200: 00:00:23.590 | B200: 0.33 | G200: 0.405 | H200: 0.330
... 4300 more rows

Sheet Instructions
B2: 1) | C2: Create two columns with data in a separate spreadsheet – first column – time; second one – position.
B3: 2) | C3: Select these two columns and copy-paste them to the A and B columns of template.
B4: 3) | C4: Check that beginning and finish of the record correspond to what you expect (Time min and Time max)
B5: 4) | C5: Calculate Time Conversion from the videofile (see the manual). TimeConversion for analysis of videofeed is 1.
B6: 5) | C6: Select the step (length of averaging interval, usually 1 min).
B7: 6) | C7: Select the interval to be analyzed (Start and Finish). Pressing “Copy times” button copies Time min and Time max into Start and Finish fields.
B9: 7) | C9: Press the button “Calculate TFE” (TFE – Time to Fatigue and Exhaustion).
B11: 8) | C11: Inspect calculated results and graphs.
B13: 9) | C13: Check and adjust Upper and Lower border (position as 1 and 0) for normalization.
B15: 10) | C15: Check and adjust thresholds for Fatigue and Exhaustion, and the number of steps to consider that thresho
B17: 11) | C17: If any parameter in the column E (TimeConversion, Step, or times for Start and Finish) needs to be changed, do it, and go to step (7) – press “Calculate TFE” button.
C18: If only parameters in columns M and O need adjustments, results update automatically after the change.
B20: Times to fatigue and exhaustion are calculated.
B22: If the beginning of the analyzed interval is not the beginning of the recording (Start > Time min), the times to fatigue and exhaustion relative to the beginning of recording will be also shown.
